bitfinex-derivatives/quotes_BTCF0:USTF0_20250329
["timestamp","ask_amount","ask_price","bid_price","bid_amount"]
[1743246156068,0.2016133,83057.0,83056.0,0.0611487]
[1743246156281,0.0811505,83057.0,83056.0,0.0611487]
[1743246157576,0.0811505,83057.0,83056.0,0.1645487]
[1743246158084,0.0811505,83057.0,83056.0,0.00092]
[1743246158883,0.0811505,83057.0,83056.0,0.1213784]
[1743246160279,0.02092,83057.0,83056.0,0.1213784]
[1743246160479,0.02092,83057.0,83056.0,0.3813784]
[1743246160680,0.02,83057.0,83056.0,0.3813784]
[1743246160879,0.02,83057.0,83056.0,0.2277784]
[1743246161179,0.02,83057.0,83056.0,0.3271784]
[1743246161784,0.02072,83057.0,83056.0,0.3271784]
[1743246161984,0.02072,83057.0,83056.0,0.5271784]
[1743246162375,0.02072,83057.0,83056.0,0.8879784]
[1743246162776,0.0004,83060.0,83059.0,0.1204541]
[1743246162977,0.2904,83060.0,83059.0,0.1212941]
[1743246163181,0.29124,83060.0,83059.0,0.1212941]
[1743246163487,0.4116926,83060.0,83059.0,0.1212941]
[1743246163682,0.6241926,83060.0,83059.0,0.1212941]
[1743246164576,0.6241926,83060.0,83059.0,0.1202941]
[1743246165887,0.6241926,83060.0,83059.0,0.00084]
[1743246166081,0.1204657,83052.0,83051.0,0.120465]
[1743246166283,0.3613057,83052.0,83051.0,0.121385]
[1743246166486,0.5639057,83052.0,83051.0,0.121385]
[1743246166783,0.5639057,83052.0,83051.0,0.00092]
[1743246167879,0.6871457,83052.0,83051.0,0.1213857]
[1743246168288,0.6871457,83052.0,83051.0,0.00092]
[1743246169590,0.6871457,83052.0,83051.0,0.1213857]
[1743246170889,0.5639057,83052.0,83051.0,0.1213857]
[1743246171190,0.5639057,83052.0,83051.0,0.3345857]
[1743246171782,0.5639057,83052.0,83051.0,0.2254857]
[1743246171983,0.5639057,83052.0,83051.0,0.1213857]
[1743246175298,0.5639057,83052.0,83051.0,0.00092]
[1743246175482,0.5639057,83052.0,83051.0,0.1204657]
[1743246175884,0.5639057,83052.0,83051.0,0.1213057]
[1743246180191,0.1204657,83051.0,83050.0,0.00018068]
[1743246180393,0.3613057,83051.0,83050.0,0.00102068]
[1743246180594,0.58592857,83051.0,83050.0,0.00102068]
[1743246180794,0.58592857,83051.0,83050.0,0.00018068]
[1743246181191,0.5744057,83051.0,83050.0,0.12064778]
[1743246181398,0.58591074,83051.0,83050.0,0.12064778]
[1743246181698,0.58591074,83051.0,83050.0,0.00018068]
[1743246182198,0.58591074,83051.0,83050.0,0.12064778]
[1743246182593,0.58591074,83051.0,83050.0,0.12148778]
[1743246185202,0.58591218,83051.0,83050.0,0.12148778]
[1743246185400,0.58591218,83051.0,83050.0,0.00102068]
[1743246185588,1.02794648,83051.0,83017.0,0.0857772]
[1743246185793,0.1204976,83029.0,83028.0,0.1093]
[1743246185993,0.1205034,83025.0,83024.0,0.1113]
[1743246186193,0.3513434,83025.0,83024.0,0.11218]
[1743246186391,0.3513434,83025.0,83024.0,0.22148]
[1743246186594,0.23084,83025.0,83024.0,0.3419849]
[1743246186899,0.23084,83025.0,83024.0,0.55540715]
[1743246187695,0.23084,83025.0,83024.0,0.75540715]
[1743246188096,0.22884,83025.0,83024.0,0.75540715]
[1743246188293,0.22884,83025.0,83024.0,0.75840715]
[1743246188494,0.3493434,83025.0,83024.0,0.75840715]
[1743246188698,0.22884,83025.0,83024.0,0.76140715]
[1743246189096,0.228,83025.0,83024.0,0.76140715]
[1743246189297,0.22884,83025.0,83024.0,0.76140715]
[1743246189597,0.3493434,83025.0,83024.0,0.76140715]
[1743246190898,0.3493434,83025.0,83024.0,0.34080715]
[1743246191307,0.3493434,83025.0,83024.0,0.1273849]
[1743246191601,0.3493434,83025.0,83024.0,0.00688]
[1743246192407,0.7101434,83025.0,83024.0,0.00688]
[1743246192706,0.7101434,83025.0,83024.0,0.006]
[1743246194803,0.7101434,83025.0,83019.0,0.00048181]
[1743246194804,0.1205107,83020.0,83019.0,0.00048181]
[1743246195009,0.120515,83017.0,83016.0,0.00018068]
[1743246195201,0.401235,83017.0,83016.0,0.00018068]
[1743246195900,0.397235,83017.0,83016.0,0.00018068]
[1743246196297,0.0602627,83010.0,83007.0,0.1064]
[1743246196512,0.1205281,83008.0,83007.0,0.10724]
[1743246196804,0.3903681,83008.0,83007.0,0.10724]
[1743246197209,0.1205339,83004.0,83003.0,0.00048191]
[1743246197399,0.3803739,83004.0,83003.0,0.00132191]
[1743246197995,0.3773739,83004.0,83003.0,0.00132191]
[1743246198304,0.1205397,83000.0,82999.0,0.00018068]
[1743246198510,0.8296997,83000.0,82999.0,0.00018068]
[1743246198711,0.1205528,82991.0,82990.0,0.1064]
[1743246199009,0.8636728,82991.0,82990.0,0.1064]
[1743246199315,0.1205571,82988.0,82987.0,0.21390425]
[1743246199498,0.3805571,82988.0,82987.0,0.21390425]
[1743246200906,0.40213263,82988.0,82987.0,0.000482]
[1743246201510,0.62773263,82988.0,82987.0,0.000482]
[1743246201810,0.1205644,82983.0,82982.0,0.1026]
[1743246202006,0.7713644,82983.0,82982.0,0.1026]
[1743246202506,0.7713644,82983.0,82979.0,0.00018068]
[1743246202507,0.1205688,82980.0,82979.0,0.00018068]
[1743246202709,0.4730488,82980.0,82979.0,0.00018068]
[1743246203597,0.4730488,82980.0,82976.0,0.1124]
[1743246203598,0.1205731,82977.0,82976.0,0.1124]
[1743246203797,0.4012131,82977.0,82976.0,0.11304]
[1743246204604,0.28064,82977.0,82976.0,0.2336146]
[1743246204811,0.4012131,82977.0,82976.0,0.2336146]
[1743246205006,0.4012131,82977.0,82976.0,0.11304]
[1743246205608,0.4042131,82977.0,82976.0,0.1124]
[1743246205912,0.1205789,82973.0,82972.0,0.1128]
[1743246206114,0.1205789,82973.0,82972.0,0.11344]
[1743246206115,0.5039389,82973.0,82972.0,0.11344]
[1743246206506,0.5039389,82973.0,82972.0,0.1128]
[1743246206811,0.5039389,82973.0,82972.0,0.11344]
[1743246207208,0.5039389,82973.0,82972.0,0.22864]
[1743246207513,0.5089389,82973.0,82972.0,0.11584]
[1743246207712,0.5089389,82973.0,82972.0,0.1152]
[1743246208106,0.5089389,82973.0,82972.0,0.22202]
[1743246208415,0.5139389,82973.0,82972.0,0.22202]
[1743246208919,0.5139389,82973.0,82972.0,0.2213]
[1743246209815,0.5139389,82973.0,82972.0,0.22194]
[1743246210314,0.3912189,82973.0,82972.0,0.3425204]
[1743246210507,0.5137389,82973.0,82972.0,0.22194]
[1743246211516,0.5137389,82973.0,82972.0,0.3425204]
[1743246212112,0.5136189,82973.0,82972.0,0.22194]
[1743246214417,0.5136189,82973.0,82972.0,0.3425204]
[1743246214914,0.3912189,82973.0,82972.0,0.3425204]
[1743246215316,0.27064,82973.0,82972.0,0.3425204]
[1743246215508,0.27064,82973.0,82972.0,0.4483204]
[1743246215708,0.4125,82981.0,82980.0,0.1205688]
[1743246215912,0.42342,82981.0,82980.0,0.1214888]
[1743246216113,0.5439873,82981.0,82980.0,0.1214888]
[1743246216721,0.5439873,82981.0,82980.0,0.3498888]
[1743246217108,0.5489873,82981.0,82980.0,0.3498888]
[1743246217511,0.01592,82981.0,82980.0,0.3498888]
[1743246217713,0.1064364,82988.0,82987.0,0.1205586]
[1743246218016,0.70022093,83000.0,82992.0,0.1205513]
[1743246218213,0.54390511,82993.0,82992.0,0.1219513]
[1743246218543,0.14191521,82993.0,82992.0,0.1219513]
[1743246218735,0.57786093,83000.0,82995.0,0.120547]
[1743246219020,0.00162068,82996.0,82995.0,0.482787]
[1743246219226,0.09162068,82996.0,82995.0,0.482787]
[1743246219426,0.21216618,82996.0,82995.0,0.482787]
[1743246221913,0.21516618,82996.0,82995.0,0.482787]
[1743246222309,0.21516618,82996.0,82995.0,0.598887]
[1743246222918,0.21516618,82996.0,82995.0,0.47834]
[1743246223128,0.33146618,82996.0,82995.0,0.47834]
[1743246223314,0.1205571,82988.0,82987.0,0.00018068]
[1743246223511,0.48231711,82988.0,82987.0,0.00114068]
[1743246223721,0.75231711,82988.0,82987.0,0.00118068]
[1743246223927,0.97231711,82988.0,82987.0,0.00018068]
[1743246224628,0.62593711,82988.0,82987.0,0.12073928]
[1743246224831,0.62593711,82988.0,82987.0,0.12181928]
[1743246225020,0.62593711,82988.0,82987.0,0.33541928]
[1743246225226,0.62693711,82988.0,82987.0,0.33541928]
[1743246225427,0.62693711,82988.0,82987.0,0.21486068]
[1743246225919,0.62893711,82988.0,82987.0,0.10706068]
[1743246226228,0.62893711,82988.0,82987.0,0.00018068]
[1743246227830,0.38566001,82988.0,82987.0,0.12169928]
[1743246228030,0.27396001,82988.0,82987.0,0.12173928]
[1743246228336,0.27396001,82988.0,82987.0,0.33963928]
[1743246228532,0.273,82988.0,82987.0,0.65333928]
[1743246229028,0.271,82988.0,82987.0,0.65333928]
[1743246229219,0.272,82988.0,82987.0,0.65333928]
[1743246229930,0.271,82988.0,82987.0,0.65333928]
[1743246230526,0.27,82988.0,82987.0,0.65333928]
[1743246230727,0.271,82988.0,82987.0,0.65333928]
[1743246230930,0.3615571,82988.0,82987.0,0.65333928]
[1743246231129,0.24208,82988.0,82987.0,0.65333928]
[1743246232129,0.241,82988.0,82987.0,0.65333928]
[1743246232429,0.001,82988.0,82987.0,0.65333928]
[1743246233326,0.002,82988.0,82987.0,0.65333928]
[1743246233734,0.120552,82992.0,82991.0,0.1205528]
[1743246234032,0.13159201,82992.0,82991.0,0.4823928]
[1743246234233,0.01,82992.0,82991.0,0.4823928]
[1743246234432,0.011,82992.0,82991.0,0.4823928]
[1743246234647,0.01,82992.0,82991.0,0.6823928]
[1743246234933,0.011,82992.0,82991.0,0.6823928]
[1743246235128,0.011,82992.0,82991.0,0.4823928]
[1743246235430,0.013,82992.0,82991.0,0.4823928]
[1743246236028,0.013,82992.0,82991.0,0.7071928]
[1743246236429,0.012,82992.0,82991.0,0.7071928]
[1743246236625,0.013,82992.0,82991.0,0.7071928]
[1743246237029,0.012,82992.0,82991.0,0.3463928]
[1743246237225,0.13451131,82992.0,82991.0,0.3463928]
[1743246238437,0.13551131,82992.0,82991.0,0.3463928]
[1743246239724,0.13551131,82992.0,82991.0,0.2313928]
[1743246239929,0.24481131,82992.0,82991.0,0.2313928]
[1743246240135,0.24581131,82992.0,82991.0,0.2313928]
[1743246240541,0.24581131,82992.0,82991.0,0.11084]
[1743246240742,0.24581131,82992.0,82991.0,0.1205528]
[1743246241052,0.1205571,82988.0,82987.0,0.00018068]
[1743246241241,0.7119971,82988.0,82987.0,0.00018068]
[1743246241544,0.7119971,82988.0,82987.0,0.00114068]
[1743246241744,0.7119971,82988.0,82987.0,0.00018068]
[1743246243143,0.7129971,82988.0,82987.0,0.00018068]
[1743246243443,0.4772371,82988.0,82987.0,0.12073928]
[1743246244059,0.4772371,82988.0,82987.0,0.12169928]
[1743246244345,0.3541971,82988.0,82987.0,0.23479928]
[1743246244845,0.3541971,82988.0,82987.0,0.34019928]
[1743246245138,0.4662971,82988.0,82987.0,0.34019928]
[1743246246544,0.34574,82988.0,82987.0,0.34019928]
[1743246246936,0.4662971,82988.0,82987.0,0.34019928]
[1743246247138,0.11574,82988.0,82987.0,0.34019928]
[1743246247333,0.003,82988.0,82987.0,0.34019928]
[1743246247634,0.00018068,82996.0,82995.0,0.120547]
[1743246247834,0.00082068,82996.0,82995.0,0.96510624]
[1743246248243,0.00082068,82996.0,82995.0,1.16510624]
[1743246248444,0.00082068,82996.0,82995.0,1.38530624]
[1743246248840,0.00082068,82996.0,82995.0,1.402627]
[1743246249245,0.00082068,82996.0,82995.0,1.162627]
[1743246249438,0.00082068,82996.0,82995.0,1.285787]
[1743246249746,0.00082068,82996.0,82995.0,1.055787]
[1743246250146,0.00182068,82996.0,82995.0,1.055787]
[1743246250447,0.00482068,82996.0,82995.0,1.055787]
[1743246250841,0.12536618,82996.0,82995.0,1.055787]
[1743246251241,0.00482068,82996.0,82995.0,1.055787]
[1743246251445,0.00482068,82996.0,82995.0,1.695787]
[1743246252058,0.00418068,82996.0,82995.0,1.695787]
[1743246252738,0.00418068,82996.0,82995.0,1.585787]
[1743246253146,0.00482068,82996.0,82995.0,1.585787]
[1743246253549,0.00418068,82996.0,82995.0,1.585547]
[1743246253949,0.12568619,82996.0,82995.0,0.855547]
[1743246254149,0.13568619,82996.0,82995.0,0.855547]
[1743246254352,0.13568619,82996.0,82995.0,0.732627]
[1743246254853,0.01514069,82996.0,82995.0,0.732627]
[1743246255151,0.13568619,82996.0,82995.0,0.732627]
[1743246255350,0.35828619,82996.0,82995.0,0.732627]
[1743246255539,0.12964069,82996.0,82995.0,0.732627]
[1743246258047,0.25018619,82996.0,82995.0,0.732627]
[1743246258849,0.25018619,82996.0,82995.0,0.49918]
[1743246259048,0.25018619,82996.0,82995.0,0.03108]
[1743246259354,0.25018619,82996.0,82995.0,0.03012]
[1743246260758,0.25018619,82996.0,82995.0,0.150667]
[1743246260958,0.25018619,82996.0,82995.0,0.151627]
[1743246261159,0.25018619,82996.0,82995.0,0.263127]
[1743246261655,0.25018619,82996.0,82995.0,0.373327]
[1743246267259,0.37278619,82996.0,82995.0,0.03108]
[1743246267465,0.0602755,82993.0,82986.0,0.00438]
[1743246267657,0.1205586,82987.0,82986.0,0.00438]
[1743246267855,0.1205717,82978.0,82972.0,0.28804337]
[1743246268059,0.8265417,82978.0,82977.0,0.21414225]
[1743246268959,0.8265417,82978.0,82977.0,0.05987225]
[1743246269159,0.8265417,82978.0,82977.0,0.06187225]
[1743246269360,0.83913823,82978.0,82977.0,0.06187225]
[1743246269667,0.1205789,82973.0,82972.0,0.28804337]
[1743246269864,0.39927606,82973.0,82972.0,0.28876337]
[1743246270161,0.39827606,82973.0,82972.0,0.28876337]
[1743246270665,0.0602937,82968.0,82956.0,0.00180814]
[1743246270860,0.1205891,82966.0,82965.0,0.35683836]
[1743246271074,0.3715891,82966.0,82965.0,0.35683836]
[1743246271266,0.3715891,82966.0,82965.0,0.00064]
[1743246271467,0.1789024,82959.0,82958.0,0.1206006]
[1743246271656,0.4599024,82959.0,82958.0,0.1213206]
[1743246271860,0.4599024,82959.0,82958.0,0.00072]
[1743246271861,0.5679024,82959.0,82958.0,0.00072]
[1743246272158,0.5639024,82959.0,82958.0,0.00072]
[1743246272363,0.6723024,82959.0,82958.0,0.00072]
[1743246272561,0.6723024,82959.0,82958.0,0.1213207]
[1743246272860,0.6733024,82959.0,82958.0,0.1263207]
[1743246273064,0.6743024,82959.0,82958.0,0.1273207]
[1743246274163,0.5004,82959.0,82958.0,0.1273207]
[1743246274474,0.003,82959.0,82958.0,0.4881207]
[1743246274766,0.002,82959.0,82958.0,0.8261207]
[1743246274962,0.002,82959.0,82958.0,1.0261207]
[1743246275571,0.252,82959.0,82958.0,1.0261207]
[1743246275861,0.003,82959.0,82958.0,1.0261207]
[1743246276057,0.3925993,82959.0,82958.0,0.4881207]
[1743246276252,0.3935993,82959.0,82958.0,0.4881207]
[1743246276658,0.3935993,82959.0,82958.0,0.36752]
[1743246276859,0.5085993,82959.0,82958.0,0.36752]
[1743246277054,0.5085993,82959.0,82958.0,0.00672]
[1743246277254,0.5085993,82959.0,82958.0,0.006]
[1743246277569,0.6247993,82959.0,82958.0,0.006]
[1743246278469,0.5042,82959.0,82958.0,0.1266007]
[1743246278771,0.6247993,82959.0,82958.0,0.1276007]
[1743246279066,0.6247993,82959.0,82958.0,0.3276007]
[1743246279956,0.5085993,82959.0,82958.0,0.3276007]
[1743246280967,0.3935993,82959.0,82958.0,0.3276007]
[1743246281571,0.3935993,82959.0,82958.0,0.007]
[1743246282861,0.3935993,82959.0,82958.0,0.006]
[1743246283261,0.3935993,82959.0,82958.0,0.007]
[1743246283568,0.3935993,82959.0,82958.0,0.00664]
[1743246283768,0.3935993,82959.0,82958.0,0.006]
[1743246284571,0.3935993,82959.0,82958.0,0.00664]
[1743246285265,0.3935993,82959.0,82958.0,0.1272407]
[1743246286958,0.273,82959.0,82958.0,0.1272407]
[1743246287466,0.272,82959.0,82958.0,0.1272407]
[1743246287664,0.003,82959.0,82958.0,0.1272407]
[1743246287863,0.002,82959.0,82958.0,0.1272407]
[1743246289473,0.3725993,82959.0,82958.0,0.1272407]
[1743246289772,0.3836793,82959.0,82958.0,0.1272407]
[1743246289968,0.00308,82959.0,82958.0,0.1272407]
[1743246290166,0.002,82959.0,82958.0,0.1272407]
[1743246290876,0.27225126,82991.0,82981.0,0.1205673]
[1743246291066,0.16253955,82982.0,82981.0,0.1212073]
[1743246291265,0.28310545,82982.0,82981.0,0.1212073]
[1743246291670,0.52580545,82982.0,82981.0,0.1212073]
[1743246291870,0.52580545,82982.0,82981.0,0.3540073]
[1743246292071,0.52680545,82982.0,82981.0,0.00064]
[1743246292272,0.6257459,82982.0,82981.0,0.00064]
[1743246292467,0.1808654,82976.0,82975.0,0.1205751]
[1743246292663,0.4319454,82976.0,82975.0,0.1212951]
[1743246292868,0.6746454,82976.0,82975.0,0.1212951]
[1743246293969,0.6746454,82976.0,82975.0,0.1222951]
[1743246294775,0.6746454,82976.0,82975.0,0.1232951]
[1743246295182,0.6746454,82976.0,82975.0,0.4840951]
[1743246295470,0.5537454,82976.0,82975.0,0.4840951]
[1743246295678,0.25108,82976.0,82975.0,0.4840951]
[1743246295871,0.01253437,82983.0,82982.0,0.1205659]
[1743246296069,0.24072,82983.0,82982.0,0.1212859]
[1743246296666,0.00072,82983.0,82982.0,0.3728859]
[1743246296865,0.14153955,82986.0,82983.0,0.0602816]
[1743246297067,0.42854093,82986.0,82985.0,0.4813615]
[1743246297278,0.42854093,82986.0,82985.0,0.4820015]
[1743246297472,0.42854093,82986.0,82985.0,0.8505015]
[1743246298069,0.42954093,82986.0,82985.0,0.8505015]
[1743246299474,0.42954093,82986.0,82985.0,0.4897015]
[1743246299676,0.42954093,82986.0,82985.0,0.8505015]
[1743246300873,0.43154093,82986.0,82985.0,0.8505015]
[1743246301477,0.43154093,82986.0,82985.0,0.4897015]
[1743246301681,0.25368,82986.0,82985.0,0.8505015]
[1743246302477,0.253,82986.0,82985.0,0.8505015]
[1743246303182,0.25368,82986.0,82985.0,0.8505015]
[1743246303589,0.37424,82986.0,82985.0,0.8505015]
[1743246303775,0.37424,82986.0,82985.0,0.7336015]
[1743246304080,0.1205775,82974.0,82973.0,0.0001808]
[1743246304280,0.35145751,82974.0,82973.0,0.1214397]
[1743246304582,0.35145751,82974.0,82973.0,0.0008608]
[1743246304785,0.35145751,82974.0,82973.0,0.0001808]
[1743246305286,0.58975751,82974.0,82973.0,0.1236397]
[1743246305487,0.58975751,82974.0,82973.0,0.1246397]
[1743246307782,0.46918001,82974.0,82973.0,0.1246397]
[1743246308084,0.35145751,82974.0,82973.0,0.1246397]
[1743246309289,0.58535751,82974.0,82973.0,0.1246397]
[1743246311579,0.58535751,82974.0,82973.0,0.0040608]
[1743246311776,0.23088001,82974.0,82973.0,0.0040608]
[1743246311984,0.14214442,82985.0,82984.0,0.120563]
[1743246312187,0.15278442,82985.0,82984.0,0.482003]
[1743246312380,0.15278442,82985.0,82984.0,0.321203]
[1743246312683,0.15278442,82985.0,82984.0,0.121203]
[1743246312883,0.27334592,82985.0,82984.0,0.121203]
[1743246313084,0.27334592,82985.0,82984.0,0.44054]
[1743246313383,0.27334592,82985.0,82984.0,0.561103]
[1743246313588,0.1322015,82985.0,82984.0,0.561103]
[1743246314183,0.1342015,82985.0,82984.0,0.561103]
[1743246315087,0.1342015,82985.0,82984.0,0.44054]
[1743246315476,0.1342015,82985.0,82984.0,0.24054]
[1743246315782,0.3754015,82985.0,82984.0,0.2399]
[1743246315985,0.3754015,82985.0,82984.0,0.24054]
[1743246316179,0.25484,82985.0,82974.0,0.1205772]
[1743246316381,0.120576,82975.0,82974.0,0.24954]
[1743246316585,0.401216,82975.0,82974.0,0.24954]
[1743246316985,0.401216,82975.0,82974.0,0.3701175]
[1743246317192,0.525916,82975.0,82974.0,0.3701175]
[1743246317390,0.525916,82975.0,82974.0,0.3711175]
[1743246317591,0.525916,82975.0,82974.0,0.3721175]
[1743246319095,0.525916,82975.0,82974.0,0.25154]
[1743246319398,0.401216,82975.0,82974.0,0.3721175]
[1743246319693,0.401216,82975.0,82974.0,0.25154]
[1743246320602,0.401216,82975.0,82974.0,0.3721175]
[1743246320794,0.401216,82975.0,82974.0,0.25154]
[1743246320986,0.401216,82975.0,82974.0,0.3721175]
[1743246321182,0.401216,82975.0,82974.0,0.25154]
[1743246321390,0.401216,82975.0,82974.0,0.45154]
[1743246322588,0.401216,82975.0,82974.0,0.81234]
[1743246322794,0.401216,82975.0,82974.0,0.45154]
[1743246322996,0.401216,82975.0,82974.0,0.81234]
[1743246323892,0.401216,82975.0,82974.0,0.5721175]
[1743246324097,0.401216,82975.0,82974.0,0.9329175]
[1743246326004,0.401216,82975.0,82974.0,0.5721175]
[1743246326195,0.401216,82975.0,82974.0,0.9329175]
[1743246326396,0.00064,82975.0,82974.0,0.9329175]
[1743246326600,0.21197476,82997.0,82984.0,0.120563]
[1743246326810,0.4125,83010.0,82984.0,0.120563]
[1743246326811,0.21197476,82995.0,82989.0,0.1205557]
[1743246327105,0.21197476,82995.0,82994.0,0.1205484]
[1743246327316,0.21197476,82995.0,82994.0,0.5815884]
[1743246328002,0.21197476,82995.0,82994.0,0.8319884]
[1743246329603,0.0001808,83003.0,82999.0,0.0602704]
[1743246329805,0.24943948,83006.0,83005.0,0.1205325]
[1743246330104,0.25055949,83006.0,83005.0,1.3645725]
[1743246330309,0.24943948,83006.0,83005.0,1.5145725]
[1743246330495,0.0004,83012.0,83011.0,0.1205237]
[1743246330697,0.0004,83012.0,83011.0,0.3915637]
[1743246331117,0.0004,83012.0,83011.0,0.5915637]
[1743246331311,0.0004,83012.0,83011.0,0.60406822]
[1743246331817,0.0104,83012.0,83011.0,0.60406822]
[1743246332011,0.0104,83012.0,83011.0,0.5915637]
[1743246332217,0.2704,83012.0,83011.0,0.5915637]
[1743246332414,0.27104,83012.0,83011.0,0.5915637]
[1743246332618,0.25104,83012.0,83011.0,0.5915637]
[1743246332811,0.01104,83012.0,83011.0,0.5915637]
[1743246333009,0.01104,83012.0,83011.0,0.2485637]
[1743246333010,0.24104,83012.0,83011.0,0.2485637]
[1743246333325,0.3615623,83012.0,83011.0,0.2485637]
[1743246333710,0.3615623,83012.0,83011.0,0.1215637]
[1743246334115,0.4766623,83012.0,83011.0,0.1215637]
[1743246335011,0.4766623,83012.0,83011.0,0.00104]
[1743246335218,0.4766623,83012.0,82993.0,0.0602746]
[1743246335219,0.1205339,83004.0,82991.0,0.2875851]
[1743246335522,0.1205339,83004.0,82991.0,0.2883051]
[1743246335523,0.1205513,82992.0,82991.0,0.2883051]
[1743246335719,0.3713113,82992.0,82991.0,0.2883051]
[1743246336023,0.4936713,82992.0,82991.0,0.2883051]
[1743246336225,0.4936713,82992.0,82991.0,0.2875851]
[1743246336517,0.4936713,82992.0,82991.0,1e-08]
[1743246337111,0.75218306,82992.0,82991.0,1e-08]
[1743246337308,0.75418306,82992.0,82991.0,1e-08]
[1743246338031,0.63163176,82992.0,82983.0,0.0001808]
[1743246338327,0.481363,82984.0,82983.0,0.0001808]
[1743246338519,0.732003,82984.0,82983.0,0.0001808]
[1743246339324,0.732003,82984.0,82965.0,0.1221]
[1743246339325,1.00114,82984.0,82952.0,0.3608]
[1743246339620,1.00114,82984.0,82950.0,0.08438]
[1743246339621,0.1206036,82956.0,82955.0,0.00120219]
[1743246339824,0.3812436,82956.0,82955.0,0.00120219]
[1743246340323,0.3812436,82956.0,82955.0,0.00048219]
[1743246340525,0.6143436,82956.0,82955.0,0.00048219]
[1743246340917,0.6153436,82956.0,82955.0,0.00448219]
[1743246341125,0.6173436,82956.0,82955.0,0.00448219]
[1743246341528,0.6173436,82956.0,82955.0,0.00048219]
[1743246341833,0.6173436,82956.0,82955.0,0.00120219]
[1743246344018,0.49674,82956.0,82955.0,0.00048219]
[1743246344324,0.26364,82956.0,82955.0,0.60590219]
[1743246344529,0.3842436,82956.0,82955.0,0.60598219]
[1743246344726,0.3842436,82956.0,82955.0,0.20128219]
[1743246344931,0.3842436,82956.0,82955.0,0.20048219]
[1743246346018,0.3842436,82956.0,82955.0,0.20128219]
[1743246346226,0.3842436,82956.0,82955.0,0.44768219]
[1743246346929,0.3842436,82956.0,82955.0,0.56828729]
[1743246347230,0.26364,82956.0,82955.0,0.56828729]
[1743246347427,0.26364,82956.0,82955.0,0.92908729]
[1743246347621,0.00364,82956.0,82955.0,0.92908729]
[1743246348018,0.003,82956.0,82955.0,0.92908729]
[1743246348238,0.00372,82956.0,82955.0,0.92908729]
[1743246349323,0.003,82956.0,82955.0,1.17908729]
[1743246349627,0.003,82956.0,82955.0,1.50908729]
[1743246349831,0.003,82956.0,82955.0,1.40908729]
[1743246350632,0.0602803,82986.0,82975.0,0.120576]
[1743246350831,0.11707944,82976.0,82975.0,0.482096]
[1743246351523,0.11635944,82976.0,82975.0,0.725596]
[1743246351824,0.12135944,82976.0,82975.0,0.725596]
[1743246352333,0.1405746,82976.0,82975.0,0.725596]
[1743246352532,0.1412946,82976.0,82975.0,0.725596]
[1743246353238,0.2584946,82976.0,82975.0,0.00072]
[1743246353535,0.1205833,82971.0,82970.0,0.1205826]
[1743246353731,0.3713033,82971.0,82970.0,0.3711026]
[1743246353937,0.6103033,82971.0,82970.0,0.3711026]
[1743246354626,0.6153033,82971.0,82970.0,0.3711026]
[1743246354826,0.6193033,82971.0,82970.0,0.3711026]
[1743246355435,0.49872,82971.0,82970.0,0.3711026]
[1743246355624,0.1205713,82979.0,82978.0,0.1205717]
[1743246355823,0.1305713,82979.0,82978.0,0.1214917]
[1743246356030,0.1212513,82979.0,82978.0,0.1214917]
[1743246356329,0.1205713,82979.0,82978.0,0.3703917]
[1743246356735,0.1207442,82984.0,82983.0,0.1205644]
[1743246356937,0.3716642,82984.0,82983.0,0.1214844]
[1743246357935,0.4873642,82984.0,82983.0,0.3683844]
[1743246358239,0.4973642,82984.0,82983.0,0.3683844]
[1743246358437,0.4973642,82984.0,82983.0,0.24782]
[1743246361736,0.3816642,82984.0,82983.0,0.24782]
[1743246362537,0.2611008,82984.0,82983.0,0.6383844]
[1743246362740,0.3816638,82984.0,82983.0,0.51782]
[1743246362945,0.3816638,82984.0,82983.0,0.8383844]
[1743246364541,0.3816638,82984.0,82983.0,0.44782]
[1743246364745,0.1205818,82971.0,82970.0,0.2430828]
[1743246364940,0.3605818,82971.0,82970.0,0.00072]
[1743246365243,0.3612618,82971.0,82970.0,0.00072]
[1743246365431,0.1205833,82970.0,82969.0,0.08436]
[1743246365636,0.3812633,82970.0,82969.0,0.08436]
[1743246366337,0.3812633,82970.0,82969.0,0.08504]
[1743246366531,0.3812633,82970.0,82969.0,0.20504]
[1743246366737,0.3812633,82970.0,82969.0,0.32714]
[1743246367046,0.004,82971.0,82970.0,0.1205833]
[1743246367346,0.1808678,82977.0,82976.0,0.0602866]
[1743246367541,0.45174781,82977.0,82976.0,0.0612466]
[1743246367734,0.45174781,82977.0,82976.0,0.3033466]
[1743246368236,0.51203681,82977.0,82976.0,0.3033466]
[1743246368537,0.76583681,82977.0,82976.0,0.3033466]
[1743246368735,0.76583681,82977.0,82976.0,0.3043466]
[1743246368736,0.77083681,82977.0,82976.0,0.3043466]
[1743246369832,0.40268001,82977.0,82976.0,0.3043466]
[1743246370041,0.28188001,82977.0,82976.0,0.3043466]
[1743246370547,0.28188001,82977.0,82976.0,0.5043466]
[1743246370742,0.28188001,82977.0,82976.0,1.3751466]
[1743246370946,0.10654024,82984.0,82983.0,0.1205644]
[1743246371147,0.11766025,82984.0,82983.0,0.7314244]
[1743246371340,0.22822325,82984.0,82983.0,0.7314244]
[1743246371537,0.45822325,82984.0,82983.0,0.7314244]
[1743246372044,0.22822325,82984.0,82983.0,0.7314244]
[1743246372243,0.51322325,82984.0,82983.0,0.7324244]
[1743246372551,0.11266025,82984.0,82983.0,0.7324244]
[1743246372849,0.11154024,82984.0,82983.0,0.7324244]
[1743246373351,0.11366025,82984.0,82983.0,0.9324244]
[1743246373550,0.49310324,82984.0,82983.0,0.9324244]
[1743246373746,0.49422325,82984.0,82983.0,0.9324244]
[1743246374451,0.23422325,82984.0,82983.0,0.9324244]
[1743246374645,0.51422325,82984.0,82983.0,0.9324244]
[1743246375349,0.40786381,82984.0,82983.0,0.9324244]
[1743246375744,0.37786381,82984.0,82983.0,0.9324244]
[1743246376036,0.36786381,82984.0,82983.0,0.9324244]
[1743246376351,0.40786381,82984.0,82983.0,0.9324244]
[1743246376749,0.23786381,82984.0,82983.0,0.9324244]
[1743246378541,0.23786381,82984.0,82983.0,0.7324244]
[1743246379653,0.23786381,82984.0,82983.0,0.4835244]
[1743246380042,0.23786381,82984.0,82983.0,0.7164244]
[1743246381850,0.11730081,82984.0,82983.0,0.7164244]
[1743246382154,0.37786381,82984.0,82983.0,0.7164244]
[1743246382541,0.37786381,82984.0,82983.0,0.9164244]
[1743246384144,0.37786381,82984.0,82983.0,0.5556244]
[1743246387757,0.61996381,82984.0,82983.0,0.5556244]
[1743246388057,0.61996381,82984.0,82983.0,0.3556244]